bitfinex-derivatives/quotes_BTCF0:USTF0_20250527
["timestamp","ask_amount","ask_price","bid_price","bid_amount"]
[1748356333342,0.98439716,109110.0,109100.0,0.05890342]
[1748356333560,1.16274116,109110.0,109100.0,0.05890342]
[1748356333758,1.16274116,109110.0,109100.0,0.01330378]
[1748356333759,1.25439716,109110.0,109100.0,0.01330378]
[1748356333944,0.90060758,109110.0,109100.0,0.01330378]
[1748356334252,0.40789388,109110.0,109100.0,0.01330378]
[1748356334446,0.40789388,109110.0,109100.0,0.11330378]
[1748356334447,0.48789388,109110.0,109100.0,0.11330378]
[1748356334647,0.59110698,109110.0,109100.0,0.01330378]
[1748356334849,0.59110698,109110.0,109100.0,8e-08]
[1748356334850,1.30776298,109110.0,109100.0,8e-08]
[1748356335043,1.30776298,109110.0,109080.0,5e-08]
[1748356335044,0.183246,109090.0,109080.0,5e-08]
[1748356335245,1.729286,109090.0,109080.0,5e-08]
[1748356335444,1.81328294,109090.0,109080.0,5e-08]
[1748356335638,2.15495494,109090.0,109080.0,5e-08]
[1748356336047,1.65971494,109090.0,109080.0,5e-08]
[1748356336254,0.1832626,109080.0,109070.0,1e-08]
[1748356336443,0.1832626,109080.0,109040.0,0.1]
[1748356336444,0.183313,109050.0,109040.0,0.1]
[1748356336649,0.964913,109050.0,109040.0,0.1]
[1748356336848,0.0916703,109040.0,109020.0,0.236]
[1748356337049,0.36129694,109030.0,109020.0,0.23604]
[1748356337246,0.02049694,109030.0,109020.0,0.1409]
[1748356337452,0.36129694,109030.0,109020.0,0.1409]
[1748356337650,0.54464354,109030.0,109020.0,0.1409]
[1748356337845,0.00049694,109030.0,109020.0,0.743424]
[1748356338056,0.00013756,109040.0,109020.0,1.0474786]
[1748356338258,0.00013756,109040.0,109030.0,0.0409]
[1748356338259,0.37455415,109040.0,109030.0,0.0409]
[1748356338553,0.37455415,109040.0,109020.0,0.66469251]
[1748356338554,0.6524702,109040.0,109020.0,0.2497827]
[1748356338749,0.6524702,109040.0,109020.0,0.1497827]
[1748356338750,0.5836466,109030.0,109020.0,0.1497827]
[1748356338948,0.3708,109030.0,109020.0,0.2497827]
[1748356339144,0.63630734,109040.0,109020.0,0.9932067]
[1748356339145,0.36093756,109040.0,109020.0,0.9932067]
[1748356339455,0.00013756,109040.0,109030.0,0.4017]
[1748356339756,0.69777106,109040.0,109030.0,0.01399866]
[1748356339961,0.69777106,109040.0,109020.0,0.36969705]
[1748356339962,0.1833466,109030.0,109020.0,0.15435936]
[1748356340156,0.4013,109030.0,109020.0,0.11331936]
[1748356340355,0.1833634,109020.0,109010.0,1.00013756]
[1748356340564,0.1833634,109020.0,109010.0,0.93772376]
[1748356340565,1.48550034,109020.0,109010.0,0.93772376]
[1748356340960,0.98666034,109020.0,109010.0,0.93772376]
[1748356342250,1.07839235,109020.0,109010.0,0.81447576]
[1748356342472,1.07839235,109020.0,109010.0,0.62232386]
[1748356342473,1.34152593,109020.0,109010.0,0.62232386]
[1748356342653,1.07939235,109020.0,109010.0,0.47876726]
[1748356342857,1.07939235,109020.0,109010.0,0.33383721]
[1748356342858,0.98866034,109020.0,109010.0,0.33383721]
[1748356343055,0.98766034,109020.0,109010.0,0.33383721]
[1748356343257,1.48742034,109020.0,109010.0,0.33383721]
[1748356343456,1.48882034,109020.0,109010.0,0.33383721]
[1748356343660,1.1283234,109020.0,109010.0,0.33383721]
[1748356343965,1.31882034,109020.0,109010.0,0.28376561]
[1748356344164,0.81866034,109020.0,109010.0,0.25516331]
[1748356344467,1.92336593,109020.0,109010.0,1e-08]
[1748356344762,0.18387754,109010.0,109000.0,2e-08]
[1748356344963,0.90437754,109010.0,109000.0,2e-08]
[1748356345362,0.40099694,109010.0,109000.0,2e-08]
[1748356345559,0.454488,109020.0,109000.0,2e-08]
[1748356345560,0.00213756,109020.0,109000.0,2.1841736]
[1748356345767,0.00213756,109020.0,109010.0,0.58266]
[1748356346063,0.1833302,109040.0,109020.0,0.10442231]
[1748356346266,0.04189694,109050.0,109030.0,0.4608]
[1748356346456,0.36217712,109060.0,109040.0,0.24116]
[1748356346457,0.63310952,109060.0,109040.0,0.24116]
[1748356346659,0.55120192,109060.0,109040.0,0.14]
[1748356346866,0.55120192,109060.0,109010.0,0.0418]
[1748356346867,0.2291851,109030.0,109010.0,0.0418]
[1748356347167,0.00013756,109030.0,109020.0,0.00442231]
[1748356347360,0.40800412,109060.0,109020.0,1.76510231]
[1748356347561,0.36217712,109060.0,109040.0,0.1]
[1748356347769,0.3608,109080.0,109050.0,0.60196]
[1748356347960,0.3808,109080.0,109050.0,0.87196]
[1748356348265,0.3808,109080.0,109020.0,1.04430231]
[1748356348266,0.1833302,109040.0,109020.0,1.40510231]
[1748356348468,0.23930636,109040.0,109030.0,0.24116]
[1748356348765,0.60010636,109040.0,109030.0,0.14116]
[1748356348961,0.60010636,109040.0,109030.0,0.09541435]
[1748356349156,0.60010636,109040.0,109030.0,0.22476]
[1748356349157,0.37093756,109040.0,109030.0,0.22476]
[1748356349357,0.37093756,109040.0,109030.0,0.0836]
[1748356349358,0.5447647,109040.0,109030.0,0.0836]
[1748356349665,0.1833806,109010.0,109000.0,0.14116002]
[1748356349854,0.6358646,109020.0,109000.0,0.37146002]
[1748356350059,0.1833758,109020.0,109010.0,0.1803]
[1748356350272,0.1833758,109020.0,108990.0,0.15868006]
[1748356350273,0.1833975,109000.0,108990.0,0.15868006]
[1748356350456,0.93549444,109000.0,108990.0,0.15868006]
[1748356350655,0.75209694,109000.0,108990.0,0.15868006]
[1748356350856,0.3608,109000.0,108990.0,0.46042806]
[1748356351162,0.3608,109000.0,108990.0,0.93188806]
[1748356351558,0.00013756,109010.0,108990.0,0.97388806]
[1748356351763,0.54431826,109010.0,109000.0,0.1771]
[1748356351963,0.1833975,109000.0,108990.0,0.15868006]
[1748356352154,0.54469444,109000.0,108990.0,0.15868006]
[1748356352360,0.85599444,109000.0,108990.0,0.15868006]
[1748356352758,0.63299694,109000.0,108990.0,0.17285529]
[1748356352962,0.3608,109000.0,108990.0,0.3642297]
[1748356353266,0.3608,109000.0,108990.0,0.75162806]
[1748356353466,0.36093756,109010.0,108990.0,0.60162806]
[1748356353661,0.00013756,109010.0,109000.0,1.14]
[1748356353864,0.54431826,109010.0,109000.0,1.04]
[1748356354060,0.90601826,109010.0,109000.0,1.04]
[1748356354364,0.94651826,109010.0,109000.0,1.18562231]
[1748356354665,0.94651826,109010.0,109000.0,1.19903221]
[1748356354666,0.9470152,109010.0,109000.0,1.19903221]
[1748356354854,0.9470152,109010.0,109000.0,1.21244279]
[1748356355059,0.9470152,109010.0,109000.0,1.01208656]
[1748356355665,1.71214878,109010.0,109000.0,1e-08]
[1748356355968,0.1835153,108930.0,108920.0,0.37734287]
[1748356356168,0.1835153,108930.0,108920.0,0.07869501]
[1748356356169,0.60810946,108930.0,108920.0,0.07869501]
[1748356356466,0.86810946,108930.0,108920.0,0.0395]
[1748356356768,0.86810946,108930.0,108900.0,1.28628]
[1748356356769,0.183549,108910.0,108900.0,1.28628]
[1748356356958,0.955149,108910.0,108900.0,1.14508]
[1748356357159,1.20781372,108910.0,108900.0,0.0796345]
[1748356357365,1.71180608,108910.0,108900.0,0.0796345]
[1748356357769,1.70583852,108910.0,108900.0,0.0796345]
[1748356357955,0.0917884,108900.0,108870.0,0.14124]
[1748356358269,0.36269708,108890.0,108880.0,0.27964]
[1748356358767,0.36280097,108890.0,108880.0,0.27964]
[1748356359069,0.36280097,108890.0,108880.0,0.37148]
[1748356359258,0.00200097,108890.0,108880.0,1.1364]
[1748356359457,0.00200097,108890.0,108880.0,1.5564]
[1748356359658,0.36280097,108890.0,108880.0,0.84528]
[1748356359973,0.36280097,108890.0,108880.0,0.27148]
[1748356360162,0.00200097,108890.0,108880.0,0.84104]
[1748356360357,0.18558327,108890.0,108880.0,0.82568]
[1748356360658,0.00200097,108890.0,108880.0,0.81752]
[1748356360968,0.36380097,108890.0,108880.0,1.16752]
[1748356361161,0.00300097,108890.0,108880.0,1.13177435]
[1748356361358,0.00300097,108890.0,108880.0,0.22669435]
[1748356361560,0.36380097,108890.0,108880.0,0.78037435]
[1748356361871,0.36380097,108890.0,108880.0,0.27613435]
[1748356362168,0.36380097,108890.0,108880.0,0.61797435]
[1748356362373,0.00300097,108890.0,108880.0,0.63797435]
[1748356362573,0.00300097,108890.0,108880.0,0.99877435]
[1748356362869,0.36380097,108890.0,108880.0,0.17613435]
[1748356363074,0.36380097,108890.0,108860.0,1.07858]
[1748356363075,0.1836046,108880.0,108860.0,1.07858]
[1748356363264,0.36216936,108870.0,108860.0,1.17858]
[1748356363466,0.54691476,108870.0,108860.0,1.07858]
[1748356363668,0.20618979,108870.0,108860.0,1.21986]
[1748356363865,0.01618979,108870.0,108860.0,1.17858]
[1748356364066,0.01618979,108870.0,108860.0,0.99433435]
[1748356364067,0.56110283,108870.0,108860.0,0.99433435]
[1748356364260,0.37698979,108870.0,108860.0,1.76939035]
[1748356364467,0.37707016,108870.0,108860.0,1.61753435]
[1748356364672,0.1836498,108850.0,108840.0,0.54661264]
[1748356364866,0.18554688,108850.0,108840.0,0.54661264]
[1748356365066,0.51324688,108850.0,108840.0,0.54661264]
[1748356365376,0.28382987,108850.0,108840.0,0.54661264]
[1748356365677,0.26474382,108850.0,108840.0,0.54661264]
[1748356365867,0.81554382,108850.0,108840.0,0.18581264]
[1748356366380,0.81554382,108850.0,108840.0,0.22671264]
[1748356366672,0.44189402,108850.0,108840.0,0.22671264]
[1748356366970,0.62554382,108850.0,108840.0,0.22671264]
[1748356367173,0.44189402,108850.0,108840.0,0.18096699]
[1748356367373,0.44189402,108850.0,108840.0,0.83012699]
[1748356367374,0.00189708,108850.0,108840.0,0.83012699]
[1748356367574,0.00189708,108850.0,108840.0,0.36932699]
[1748356367874,0.54634688,108850.0,108840.0,0.36932699]
[1748356368070,0.96484382,108850.0,108840.0,0.15355671]
[1748356368464,1.05671582,108850.0,108840.0,0.15355671]
[1748356368666,2.55671582,108850.0,108840.0,0.15355671]
[1748356368867,2.55671582,108850.0,108840.0,0.14006699]
[1748356368868,1.05671582,108850.0,108840.0,0.14006699]
[1748356369068,0.1837005,108820.0,108810.0,0.18826]
[1748356369270,0.5445005,108820.0,108810.0,0.09618924]
[1748356369467,0.73639758,108820.0,108810.0,0.09618924]
[1748356369668,0.77539452,108820.0,108810.0,0.09618924]
[1748356369974,0.94489758,108820.0,108810.0,0.0823]
[1748356370278,0.94489758,108820.0,108810.0,0.05055619]
[1748356370477,0.55119708,108820.0,108810.0,0.03655435]
[1748356370672,0.00189708,108820.0,108810.0,0.03655435]
[1748356370972,0.54586065,108840.0,108810.0,1.51038468]
[1748356370973,0.00138005,108840.0,108810.0,1.51038468]
[1748356371175,0.00138005,108840.0,108830.0,0.3608]
[1748356371378,0.59176565,108840.0,108830.0,0.01344347]
[1748356371581,0.86086259,108840.0,108750.0,0.00108495]
[1748356371774,0.183768,108780.0,108770.0,0.1]
[1748356371975,0.0459604,108740.0,108710.0,0.508]
[1748356372170,0.590618,108730.0,108720.0,0.1]
[1748356372372,0.1838694,108720.0,108710.0,0.10013756]
[1748356372669,0.54574339,108720.0,108710.0,0.00013756]
[1748356372978,0.55329117,108720.0,108710.0,0.00013756]
[1748356373272,0.55329117,108720.0,108700.0,0.05925441]
[1748356373273,0.1848863,108710.0,108700.0,0.05925441]
[1748356373476,0.5456863,108710.0,108700.0,0.05925441]
[1748356373681,0.6056863,108710.0,108700.0,0.20649441]
[1748356373881,0.6746863,108710.0,108700.0,0.2984864]
[1748356374179,0.6746863,108710.0,108700.0,0.28879441]
[1748356374180,0.54476116,108710.0,108700.0,0.28879441]
[1748356374369,0.54476116,108710.0,108700.0,0.4807864]
[1748356374574,0.54476116,108710.0,108700.0,0.10035441]
[1748356374575,0.5446863,108710.0,108700.0,0.10035441]
[1748356374777,0.58698324,108710.0,108700.0,0.10035441]
[1748356375080,0.1839371,108680.0,108670.0,0.0406]
[1748356375283,0.72168871,108680.0,108670.0,0.32904]
[1748356375471,8.871e-05,108680.0,108670.0,0.523816]
[1748356375671,0.00013756,108690.0,108670.0,2.11978958]
[1748356375971,0.3608,108710.0,108680.0,1.76513358]
[1748356376278,0.3608,108710.0,108690.0,0.66408]
[1748356376480,0.3608,108710.0,108700.0,0.14732]
[1748356376676,0.3608,108730.0,108700.0,0.97293358]
[1748356376879,0.5456694,108720.0,108710.0,0.1]
[1748356377080,0.5456694,108720.0,108700.0,0.14745756]
[1748356377081,0.1838863,108710.0,108700.0,0.00025756]
[1748356377274,0.92738324,108710.0,108700.0,0.00025756]
[1748356377580,0.97817501,108710.0,108700.0,0.00013756]
[1748356377787,0.492,108710.0,108700.0,0.19212955]
[1748356377976,0.37590186,108720.0,108700.0,0.47224955]
[1748356377977,0.3608,108720.0,108700.0,0.47224955]
[1748356378174,0.3608,108720.0,108700.0,1.15304955]
[1748356378371,0.36093756,108730.0,108710.0,0.3608]
[1748356378579,0.00138186,108760.0,108720.0,1.12552]
[1748356378774,0.00138186,108760.0,108750.0,0.3608]
[1748356379090,0.00138186,108760.0,108750.0,1.0254]
[1748356379288,0.00138186,108760.0,108750.0,1.35970235]
[1748356379479,0.00013756,108770.0,108750.0,1.56970235]
[1748356379780,0.00013756,108770.0,108760.0,0.0272]
[1748356379972,0.00013756,108770.0,108760.0,0.7761]
[1748356380170,0.00013756,108770.0,108760.0,0.86804]
[1748356380476,0.1,108800.0,108760.0,0.69724]
[1748356380776,0.1406,108800.0,108790.0,0.1]
[1748356380979,0.1,108800.0,108790.0,0.700036]
[1748356381178,0.1,108800.0,108790.0,2.057816]
[1748356381384,0.1,108800.0,108790.0,1.807816]
[1748356381780,0.1,108800.0,108790.0,2.418736]
[1748356381973,0.00013756,108810.0,108790.0,2.448736]
[1748356382273,0.00013756,108810.0,108800.0,0.61732]
[1748356382481,0.00013756,108810.0,108800.0,0.99957435]
[1748356382675,0.00013756,108810.0,108800.0,1.34148235]
[1748356382872,0.00013756,108810.0,108800.0,1.34160235]
[1748356383491,0.3608,108860.0,108830.0,0.1]
[1748356383684,0.76292627,108860.0,108840.0,0.03162231]
[1748356383882,0.001,108850.0,108840.0,0.15174231]
[1748356384087,0.0496,108850.0,108840.0,0.15174231]
[1748356384285,0.0496,108850.0,108840.0,0.51266231]
[1748356384286,0.0787,108850.0,108840.0,0.51266231]
[1748356384475,0.00013756,108860.0,108840.0,1.01173431]
[1748356384681,0.00013756,108860.0,108850.0,0.8778]
[1748356384882,0.00013756,108860.0,108850.0,0.17452]
[1748356385084,0.00013756,108860.0,108850.0,0.877184]
[1748356385381,0.00013756,108860.0,108850.0,0.52949435]
[1748356385585,0.04023756,108860.0,108850.0,0.62949435]
[1748356385780,0.04023756,108860.0,108850.0,0.72135835]
[1748356385988,0.00013756,108860.0,108850.0,0.99135835]
[1748356386177,0.00013756,108860.0,108850.0,0.47403835]
[1748356386488,0.00013756,108860.0,108850.0,0.72135835]
[1748356386699,0.00013756,108860.0,108850.0,0.72123835]
[1748356386885,0.00013756,108860.0,108850.0,1.35215835]
[1748356387385,0.00049694,108870.0,108850.0,1.18483835]
[1748356387586,0.00049694,108870.0,108860.0,0.7636]
[1748356387790,0.00049694,108870.0,108860.0,1.2144]
[1748356387993,0.00049694,108870.0,108860.0,1.406256]
[1748356388388,0.00049694,108870.0,108860.0,1.61063035]
[1748356388692,0.00049694,108870.0,108860.0,1.64793035]
[1748356388889,0.00049694,108870.0,108860.0,0.840076]
[1748356389089,0.05069694,108870.0,108860.0,1.253316]
[1748356389296,0.00239402,108870.0,108860.0,1.523436]
[1748356389591,0.00013756,108880.0,108860.0,1.74158]
[1748356389784,0.1,108900.0,108860.0,1.74158]
[1748356389785,0.1,108900.0,108870.0,0.3608]
[1748356389986,0.1,108900.0,108890.0,0.4608]
[1748356390187,0.1,108900.0,108890.0,2.16596]
[1748356390388,0.3621789,108930.0,108890.0,2.888592]
[1748356390690,0.3621789,108930.0,108900.0,0.13743756]
[1748356390691,0.18361997,108920.0,108900.0,0.13743756]
[1748356390889,0.04028747,108920.0,108910.0,1.12352]
[1748356391084,8.747e-05,108920.0,108910.0,1.17082]
[1748356391287,8.747e-05,108920.0,108910.0,1.973436]
[1748356391486,0.05744124,108920.0,108910.0,1.92769035]
[1748356392091,0.05744124,108920.0,108910.0,0.65417035]
[1748356392286,0.05744124,108920.0,108910.0,2.34793035]
[1748356392485,0.05744124,108920.0,108910.0,2.64793035]
[1748356392783,0.05482522,108940.0,108930.0,0.1]
[1748356392988,0.23830912,108950.0,108930.0,0.4608]
[1748356393192,0.001,108950.0,108940.0,0.66252]
[1748356393496,0.1844819,108950.0,108940.0,0.66252]
[1748356393694,0.1844819,108950.0,108940.0,0.754308]
[1748356393892,0.33003902,108960.0,108940.0,1.115108]
[1748356394093,0.1834819,108950.0,108940.0,1.02332]
[1748356394301,0.50736152,108960.0,108940.0,1.02332]
[1748356394302,0.6818835,108960.0,108940.0,1.02332]
[1748356394595,0.1834819,108950.0,108940.0,0.61677435]
[1748356394800,0.1844672,108960.0,108940.0,0.98757435]
[1748356394997,0.2762148,108960.0,108950.0,1.70612]
[1748356395293,0.001,108960.0,108950.0,1.70612]
[1748356395494,0.41562522,108980.0,108950.0,0.44178]
[1748356395795,0.3608,108970.0,108960.0,0.1]
[1748356395997,0.1834651,108960.0,108950.0,1.04157756]
[1748356396198,0.99801667,108970.0,108950.0,1.70653756]
[1748356396390,0.95215177,108970.0,108950.0,1.70653756]
[1748356396589,0.3618,108970.0,108950.0,1.14157756]
[1748356396803,0.3618,108970.0,108960.0,0.6646]
[1748356397291,0.3618,108970.0,108950.0,0.00025756]
[1748356397492,0.5452483,108970.0,108960.0,0.11547465]
[1748356397685,0.001,108970.0,108960.0,0.11547465]
[1748356397890,0.001,108970.0,108960.0,0.15032]
[1748356398098,0.3618,108970.0,108960.0,0.15032]
[1748356398296,0.3618,108980.0,108960.0,0.34209199]
[1748356398492,0.35895131,108980.0,108970.0,0.00369738]
[1748356398694,0.54238271,108980.0,108970.0,0.00369738]
[1748356398897,0.90440898,108980.0,108970.0,0.00369738]
[1748356399196,0.90440898,108980.0,108950.0,1.04145756]
[1748356399197,0.1834482,108970.0,108960.0,0.15032]
[1748356399398,0.1834482,108970.0,108960.0,0.01]
[1748356399399,0.1795226,108970.0,108960.0,0.01]
[1748356399592,0.90997185,108970.0,108960.0,0.16032]
[1748356399996,0.36549738,108970.0,108960.0,0.15032]
[1748356400393,0.00469738,108970.0,108960.0,0.49044]
[1748356400588,0.00469738,108970.0,108960.0,0.16044]
[1748356400800,0.54894558,108970.0,108960.0,0.16044]
[1748356400990,0.54894558,108970.0,108960.0,0.15032]
[1748356401191,0.54822945,108970.0,108960.0,0.15032]
[1748356401395,0.36478125,108970.0,108960.0,0.15044]
[1748356401597,0.36475836,108970.0,108960.0,0.15044]
[1748356402090,0.54820656,108970.0,108960.0,0.00012]
[1748356402291,0.54820656,108970.0,108960.0,0.15044]
[1748356402292,0.96909683,108970.0,108960.0,0.15044]
[1748356402508,0.00395836,108970.0,108960.0,0.16044]
[1748356402693,0.00395836,108970.0,108960.0,0.25221199]
[1748356402898,0.00395836,108970.0,108960.0,0.87695483]
[1748356403106,0.04395836,108970.0,108960.0,0.87695483]
[1748356403302,0.00395836,108970.0,108960.0,0.25221199]
[1748356403601,0.00295836,108970.0,108960.0,0.25221199]
[1748356403800,0.00395836,108970.0,108960.0,0.25221199]
[1748356404592,0.00295836,108970.0,108960.0,0.71301199]
[1748356404793,0.00395836,108970.0,108960.0,0.71301199]
[1748356405002,0.36475836,108970.0,108960.0,0.25209199]
[1748356405294,0.36475836,108970.0,108960.0,0.01012]
[1748356405495,0.36475836,108970.0,108960.0,0.6612]
[1748356405696,0.06129586,108970.0,108960.0,0.66132]
[1748356406096,0.06029236,108970.0,108960.0,0.283585]
[1748356406301,0.10669236,108970.0,108960.0,1.405225]
[1748356406503,0.10669236,108970.0,108960.0,1.451725]
[1748356406702,0.10489236,108970.0,108960.0,1.656725]
[1748356406902,0.06029236,108970.0,108960.0,1.99849699]
[1748356407098,0.00013756,108980.0,108970.0,0.28787051]
[1748356407402,0.04288887,108990.0,108980.0,0.2834314]
[1748356407615,0.10924363,109010.0,108990.0,0.1371724]
[1748356407797,0.65305835,109050.0,109030.0,0.2750054]
[1748356407996,0.65305835,109050.0,109030.0,0.1465]
[1748356407997,0.5451304,109040.0,109030.0,0.1465]
[1748356408306,0.5451304,109040.0,109020.0,0.015]
[1748356408307,0.001,109030.0,109020.0,0.7894804]
[1748356408500,0.001,109030.0,109020.0,0.15229175]
[1748356408501,0.36130306,109030.0,109020.0,0.15229175]
[1748356408805,0.36130306,109030.0,109020.0,0.15241175]
[1748356408806,0.72232933,109030.0,109020.0,0.15241175]
[1748356408997,0.72232933,109030.0,109020.0,0.15229175]
[1748356408998,0.90567653,109030.0,109020.0,0.15229175]
[1748356409198,1.14948567,109030.0,109010.0,0.66064]
[1748356409398,0.36130306,109020.0,109010.0,0.1]
[1748356409610,0.36130306,109020.0,109010.0,0.76076951]
[1748356409801,0.72232933,109020.0,109010.0,0.76076951]
[1748356410011,1.15000583,109020.0,109010.0,0.00036951]
[1748356410201,0.1833811,109010.0,109000.0,0.00201241]
[1748356410404,0.60561526,109010.0,109000.0,0.00214997]
[1748356410713,0.5441811,109010.0,109000.0,0.00140228]
[1748356410907,0.04635436,109000.0,108980.0,1.1908353]
[1748356411104,0.36565337,108990.0,108980.0,1.13824967]
[1748356411306,0.36565337,108990.0,108980.0,1.69804967]
[1748356411610,0.40765337,108990.0,108980.0,1.69804967]
[1748356412106,0.59106807,108990.0,108980.0,1.69804967]
[1748356412310,0.40765337,108990.0,108980.0,1.69804967]
[1748356412513,0.40765337,108990.0,108980.0,1.79724967]
[1748356412711,0.63106807,108990.0,108980.0,1.79724967]
[1748356412910,0.63106807,108990.0,108980.0,1.03824967]
[1748356412911,1.5977096,108990.0,108980.0,1.03824967]
[1748356413113,1.5977096,108990.0,108980.0,1.03836967]
[1748356413411,0.1834315,108980.0,108970.0,1e-08]
[1748356413617,1.65740399,108980.0,108970.0,1e-08]
[1748356413801,0.1835326,108920.0,108910.0,0.3608]
[1748356414002,0.1835326,108920.0,108910.0,0.1]
[1748356414003,0.5453013,108920.0,108910.0,0.1]
[1748356414209,0.5453013,108920.0,108900.0,0.0463]
[1748356414210,0.90397859,108920.0,108900.0,0.0463]
[1748356414409,0.3608,108910.0,108900.0,0.0463]
[1748356414707,0.3608,108910.0,108890.0,1.0484]
[1748356414708,0.00050306,108900.0,108890.0,0.00013756]
[1748356415008,0.0005681,108900.0,108890.0,0.00013756]
[1748356415214,0.40478207,108900.0,108890.0,0.15037756]
[1748356415516,0.04536212,108900.0,108890.0,0.27247756]
[1748356415814,0.00245906,108900.0,108890.0,3.3711956]
[1748356416011,0.00245906,108900.0,108890.0,3.12655276]
[1748356416605,0.00245906,108900.0,108890.0,2.60879276]
[1748356416807,0.00245906,108900.0,108890.0,3.12607276]
[1748356417314,0.04573756,108920.0,108910.0,0.1835494]
[1748356417611,0.00013756,108920.0,108910.0,0.7343494]
[1748356417811,0.00013756,108920.0,108910.0,0.9875654]
[1748356418209,0.00013756,108920.0,108910.0,1.2275654]
[1748356418517,0.000219,108920.0,108910.0,1.2275654]
[1748356418717,0.000219,108920.0,108910.0,1.8383654]
[1748356419106,0.000219,108920.0,108910.0,2.5053654]
[1748356419411,0.000219,108920.0,108910.0,1.8941254]
[1748356419605,0.000219,108920.0,108910.0,1.6941254]
[1748356419801,0.00050306,108950.0,108930.0,0.045878]
[1748356420019,0.00050306,108950.0,108910.0,2.05312392]
[1748356420020,0.00050306,108950.0,108940.0,0.71706]
[1748356420223,0.00050306,108960.0,108950.0,0.183482]
[1748356420408,0.00050306,108960.0,108950.0,0.1642]
[1748356420716,0.00050306,108960.0,108950.0,0.13]
[1748356420717,0.36130306,108960.0,108950.0,0.13]
[1748356420908,0.96903154,108960.0,108950.0,0.13]
[1748356421100,1.37803154,108960.0,108950.0,0.15028]
[1748356421314,1.37803154,108960.0,108950.0,0.1504]
[1748356421315,1.42903154,108960.0,108950.0,0.1504]
[1748356421505,1.42903154,108960.0,108950.0,0.15028]
[1748356421707,1.48033375,108960.0,108950.0,0.15028]
[1748356421908,1.11953375,108960.0,108950.0,0.3338823]
[1748356422212,1.11903069,108960.0,108950.0,0.3338823]
[1748356422607,0.51145896,108960.0,108950.0,0.4338823]
[1748356422808,0.15054615,108960.0,108950.0,0.4338823]
[1748356423007,0.09954615,108960.0,108950.0,0.9374623]
[1748356423209,0.05134615,108960.0,108950.0,1.4316623]
[1748356423420,0.05134615,108960.0,108950.0,1.97421022]
[1748356423608,4.441e-05,108960.0,108950.0,1.97421022]
[1748356423811,4.441e-05,108960.0,108950.0,2.01912561]
[1748356424215,0.00013756,108970.0,108960.0,0.1834655]
[1748356424519,0.00013756,108970.0,108960.0,1.23128089]
[1748356424825,0.00013756,108970.0,108960.0,1.52813749]
[1748356425412,0.05218498,108990.0,108980.0,0.1834318]
[1748356425620,0.04907001,108990.0,108980.0,2.35778616]
[1748356425926,0.41190306,109010.0,108990.0,0.275105]
[1748356426113,0.59028294,109000.0,108990.0,0.02]
[1748356426312,0.00050306,108990.0,108980.0,0.1834266]
[1748356426622,0.61286236,108990.0,108980.0,0.84878373]
[1748356426821,0.3660911,108990.0,108980.0,0.94878373]
[1748356427014,0.00478804,108990.0,108980.0,0.99668373]
[1748356427214,0.51249686,109010.0,108990.0,0.0917017]
[1748356427424,0.87151715,109010.0,109000.0,0.00415412]
[1748356427626,0.87151715,109010.0,109000.0,0.00478648]
[1748356428010,0.28899194,109030.0,109000.0,0.00478648]
[1748356428011,0.3608,109030.0,109020.0,0.1833645]
[1748356428225,0.3608,109030.0,109020.0,0.8501645]
[1748356428226,0.72171281,109030.0,109020.0,0.8501645]
[1748356428523,0.24677126,109030.0,109020.0,1.89315696]
[1748356428709,0.29767126,109030.0,109020.0,2.39358096]
[1748356428912,0.29767126,109030.0,109020.0,2.43798096]
[1748356429112,0.0509,109030.0,109020.0,2.43798096]
[1748356429323,0.05123756,109040.0,109030.0,0.1833477]
[1748356429512,0.05123756,109040.0,109030.0,0.81884016]
[1748356429710,0.05123756,109040.0,109030.0,0.55804016]
[1748356430113,0.3608,109060.0,109040.0,0.0458291]
[1748356430321,0.96848407,109060.0,109050.0,0.6658]
[1748356430518,0.96848407,109060.0,109050.0,0.00239246]
[1748356430726,1.46178137,109060.0,109050.0,0.00239246]
[1748356430932,0.1833477,109030.0,109020.0,0.8433895]
[1748356431223,0.1833477,109030.0,109020.0,0.84375901]
[1748356431224,0.7216,109030.0,109020.0,0.84375901]
[1748356431416,0.96837126,109030.0,109020.0,0.84387901]
[1748356431614,0.3608,109050.0,109030.0,0.0458334]
[1748356431819,0.5440974,109060.0,109040.0,0.10038161]
[1748356432118,0.24677126,109060.0,109050.0,0.1646]
[1748356432316,0.79087026,109060.0,109050.0,0.1646]
[1748356432519,0.544099,109060.0,109050.0,0.1646]
[1748356432725,0.544099,109060.0,109040.0,0.00051917]
[1748356432726,0.1833141,109050.0,109040.0,0.00051917]
[1748356432917,0.79088536,109050.0,109040.0,0.00051917]
[1748356433431,0.83908536,109050.0,109040.0,0.00051917]
[1748356433724,0.65577126,109050.0,109040.0,0.00051917]
[1748356434029,0.65577126,109050.0,109040.0,0.18397007]
[1748356434216,0.70197126,109050.0,109040.0,0.18397007]
[1748356434416,0.70197126,109050.0,109040.0,0.00063917]
[1748356434727,0.70197126,109050.0,109040.0,0.98420997]
[1748356434728,0.4552,109050.0,109040.0,0.98420997]
[1748356434924,0.4552,109050.0,109040.0,1.08432997]
[1748356435227,0.3608,109070.0,109060.0,0.1832972]
[1748356435616,0.3608,109070.0,109060.0,0.8830972]
[1748356435617,0.65857126,109070.0,109060.0,0.8830972]
[1748356436226,0.65857126,109070.0,109060.0,0.1832973]
[1748356436425,0.65857126,109070.0,109060.0,0.8822973]
[1748356436827,0.70583283,109070.0,109060.0,0.8824173]
[1748356437425,0.7058025,109070.0,109060.0,0.16468]
[1748356437626,0.98857126,109070.0,109060.0,0.16456]
[1748356437814,0.65857126,109070.0,109060.0,0.3479773]
[1748356438017,0.65857126,109070.0,109060.0,0.16456]
[1748356438327,0.65857126,109070.0,109060.0,0.16468]
[1748356438328,0.70580168,109070.0,109060.0,0.16468]
[1748356438530,0.75610168,109070.0,109060.0,0.16468]
[1748356438724,0.50933042,109070.0,109060.0,0.3478572]
[1748356438919,0.75610168,109070.0,109060.0,0.3679772]
[1748356439515,0.75610342,109070.0,109060.0,0.3679772]
[1748356439715,0.4621,109070.0,109060.0,0.2034172]
[1748356439925,0.70887126,109070.0,109060.0,0.3479373]
[1748356440824,0.1013,109070.0,109060.0,0.8387373]
[1748356441028,0.4208,109090.0,109080.0,0.1832641]
[1748356441230,0.06,109090.0,109080.0,0.8145441]
[1748356441431,0.06,109090.0,109080.0,0.9101441]
[1748356441619,0.06,109090.0,109080.0,1.3301441]
[1748356441820,0.06,109090.0,109080.0,1.5909441]
[1748356442017,0.1103,109090.0,109080.0,1.5909441]
[1748356442223,0.0343206,109090.0,109080.0,1.6909441]